[Event "1st Serbian League 2022"]
[Site "Vrnjacka Banja"]
[Date "2022.09.24"]
[Round "5.14"]
[White "Ivic, Velimir"]
[Black "Gurel, Ediz"]
[Result "1-0"]
[ECO "D17"]
[WhiteElo "2553"]
[BlackElo "2437"]
[Annotator "TA"]
[PlyCount "77"]
[EventDate "2022.09.20"]
[EventType "team-tourn"]
[EventCountry "SRB"]
[SourceTitle "playchess.com"]
[Source "ChessBase"]
[SourceQuality "1"]
[TimeControl "40/5400+30:1800+30"]

{[%evp 15,77,22,28,18,38,41,39,32,87,95,87,93,91,71,142,149,152,139,150,118,112,58,46,52,275,265,264,264,270,257,264,256,245,211,329,305,409,402,393,389,387,387,515,505,506,488,543,506,525,479,1068,510,800,752,1472,1588,4718,4718,2460,1600,1945,1757,1712,1631]} 1. d4 {[%emt 0:00:09]} d5 {[%emt 0:00:26]} 2. c4 {[%emt 0:00:12]} c6 {[%emt 0:00:03]} 3. Nf3 {[%emt 0:00:14]} Nf6 {[%emt 0:00:19]} 4. Nc3 {[%emt 0:00:21]} dxc4 {[%emt 0:00:17]} 5. a4 {[%emt 0:00:34]} Bf5 {[%emt 0:01:23]} 6. Ne5 {[%emt 0:00:36]} Nbd7 {[%emt 0:00:13]} 7. Nxc4 {[%emt 0:00:08]} Nb6 {[%emt 0:00:03]} 8. Ne5 {[%emt 0:00:23]} a5 {[%emt 0:00:31]} 9. e3 {[%emt 0:00:41] D17: Slav Defence: 5 a4 Bf5: Lines with 6 Nh4 and 6 Ne5.} e6 {[%emt 0:00:48]} 10. g4 {[%emt 0:04:31]} Bg6 {[%emt 1:31:27]} 11. h4 {[%emt 0:01:14][%cal Bh2h4,Bh4h5][%mdl 32] White is slightly better.} Bb4 {[%emt 0:00:00]} (11... Bd6 $14) 12. h5 $16 {[%emt 0:02:35]} Be4 {[%emt 0:00:00]} 13. f3 {[%emt 0:00:13]} Bd5 {[%emt 0:00:00]} 14. e4 $36 {[%emt 0:00:19][%mdl 2048] Keeping Black busy.} Bxe4 {[%emt 0:00:00]} 15. fxe4 {[%emt 0:00:31]} Nxe4 {[%emt 0:00:00]} 16. Qd3 {[%emt 0:05:18]} Nd5 {[%emt 0:00:00][%cal Rd5c3]} 17. Qxe4 {[%emt 0:09:39]} Nxc3 {[%emt 0:00:00] [#]} 18. bxc3 {[%emt 0:00:13]} ({Better is} 18. Qd3 $1 $16 Nb5+ 19. Kf2 Nxd4 20. Be3 Qf6+ 21. Kg2) 18... Bxc3+ $14 {[%emt 0:00:00]} 19. Bd2 {[%emt 0:00:11] [#]} Qxd4 $146 {[%emt 0:00:00] This move loses the game for Black.} (19... Bxa1 $14 20. Nf3 Qd6) ({Predecessor:} 19... Bxa1 20. Be3 Qd5 21. Qxd5 Bc3+ 22. Ke2 exd5 23. h6 f6 24. hxg7 Rg8 25. Nd3 Rxg7 {1-0 (50) Cheparinov,I (2677)-Nikolov,S (2386) Varna 2012}) 20. Qxd4 $18 {[%emt 0:02:12]} Bxd4 {[%emt 0:00:00]} 21. Rb1 {[%emt 0:06:31]} Bxe5 {[%emt 0:00:00]} 22. Rxb7 {[%emt 0:00:07]} O-O {[%emt 0:00:00]} 23. Rh3 {[%emt 0:01:48]} Rfd8 {[%emt 0:00:00]} 24. Rd3 {[%emt 0:02:00]} h6 {[%emt 0:00:00]} (24... Rd5 $142 25. Rd7 Kf8) 25. Rdd7 {[%emt 0:03:01]} ({Much less strong is} 25. Rxd8+ Rxd8 26. Ra7 (26. Bxa5 Ra8 $16) 26... Rd4 27. Rxa5 Bg3+ 28. Ke2 Rxg4) 25... c5 {[%emt 0:00:00]} 26. Bc4 {[%emt 0:03:44]} Bf6 {[%emt 0:00:00]} 27. Ke2 {[%emt 0:02:37]} ({Not} 27. Rxf7 Rd4 $18) 27... Rxd7 {[%emt 0:00:00]} 28. Rxd7 {[%emt 0:00:06]} Bb2 {[%emt 0:00:00]} 29. Kd3 {[%emt 0:02:43] White is clearly winning.} Kf8 {[%emt 0:00:00]} 30. Bf4 {[%emt 0:01:25]} Ba3 {[%emt 0:00:00]} 31. Bd6+ {[%emt 0:01:36]} Kg8 {[%emt 0:00:00]} 32. Bc7 {[%emt 0:04:43]} Ra7 {[%emt 0:00:00]} (32... Bb4 $142 33. Bb5 Rf8) 33. Bb5 {[%emt 0:00:37]} (33. Rd8+ $142 Kh7 34. Be5) 33... Kh7 {[%emt 0:00:00]} (33... g6 $142 34. hxg6 fxg6) 34. Kc4 {[%emt 0:02:11]} f6 {[%emt 0:00:00]} 35. Bc6 {[%emt 0:00:17] [#] Intending Be4+ and mate.} f5 {[%emt 0:00:00] Against Be4} 36. gxf5 {[%emt 0:00:32]} exf5 {[%emt 0:00:00]} 37. Kb5 {[%emt 0:00:25] And now Kb6 would win.} c4 {[%emt 0:00:00]} 38. Kxc4 {[%emt 0:00:20]} Bc1 {[%emt 0:00:00]} 39. Kb5 {[%emt 0:02:34] Weighted Error Value: White=0.28 (precise) /Black=0.48} 1-0

[Event "1st Serbian League 2022"]
[Site "Vrnjacka Banja"]
[Date "2022.09.24"]
[Round "5.15"]
[White "Markus, Robert"]
[Black "Nenezic, Marko"]
[Result "1/2-1/2"]
[ECO "D78"]
[WhiteElo "2615"]
[BlackElo "2528"]
[Annotator "TA"]
[PlyCount "64"]
[EventDate "2022.09.20"]
[EventType "team-tourn"]
[EventCountry "SRB"]
[SourceTitle "playchess.com"]
[Source "ChessBase"]
[SourceQuality "1"]
[TimeControl "40/5400+30:1800+30"]

{[%evp 12,64,0,0,0,0,0,-8,0,0,0,-7,1,-3,0,-27,-27,-30,-11,-29,-30,-23,-27,-29,-27,-29,-27,-35,-28,-30,-5,-3,0,-7,-7,-8,-9,-16,-16,-17,-16,-16,-16,-16,-16,-16,-16,-16,-16,-15,-14,-15,-15,-15,0]} 1. d4 {[%emt 0:00:08]} Nf6 {[%emt 0:00:59]} 2. Nf3 {[%emt 0:00:08]} g6 {[%emt 0:00:18]} 3. c4 {[%emt 0:00:13]} Bg7 {[%emt 0:00:30]} 4. g3 {[%emt 0:00:07]} c6 {[%emt 0:00:39]} 5. Bg2 {[%emt 0:04:27]} d5 {[%emt 0:00:23]} 6. Na3 {[%emt 0:00:17]} O-O {[%emt 0:00:44]} 7. O-O {[%emt 0:00:07]} Qb6 {[%emt 0:00:11] D78: Fianchetto Grünfeld: 6 0-0 c6.} 8. b3 {[%emt 0:02:04]} Bf5 {[%emt 0:02:28]} 9. Bb2 {[%emt 0:03:33] [#]} Rd8 $146 {[%emt 0:03:48]} ({Predecessor:} 9... a5 10. Qd2 Nbd7 11. Rfc1 Rfd8 12. e3 Ne4 13. Qe2 a4 14. c5 Qa5 15. Ne1 axb3 16. axb3 {½-½ (36) Nikolic,P (2620)-Popovic,P (2510) Pula 1991}) 10. e3 {[%emt 0:02:52]} a5 {[%emt 0:04:51][%cal Ba7a5,Ba5a4][%mdl 32]} 11. Ne5 {[%emt 0:20:34]} Nbd7 {[%emt 0:07:22]} 12. Nxd7 {[%emt 0:04:58]} Rxd7 {[%emt 0:02:36]} 13. Qe2 {[%emt 0:03:48]} a4 {[%emt 0:10:57]} 14. c5 {[%emt 0:01:54]} Qa5 {[%emt 0:08:44]} 15. Nc2 {[%emt 0:09:48]} Qa6 {[%emt 0:12:00]} 16. Qxa6 {[%emt 0:05:38]} Rxa6 {[%emt 0:00:08]} 17. Rfc1 {[%emt 0:00:04]} axb3 {[%emt 0:02:19]} 18. axb3 {[%emt 0:00:06]} Rxa1 {[%emt 0:00:06]} 19. Bxa1 {[%emt 0:06:56]} Rd8 {[%emt 0:00:47]} 20. Bb2 {[%emt 0:00:06]} Rb8 {[%emt 0:22:56]} 21. b4 {[%emt 0:05:11] The position is equal.} b6 {[%emt 0:01:23]} 22. cxb6 {[%emt 0:00:08]} Rxb6 {[%emt 0:00:04]} 23. Bc3 {[%emt 0:00:05]} e6 {[%emt 0:02:36]} 24. f3 {[%emt 0:05:53]} h5 {[%emt 0:02:57]} 25. h3 {[%emt 0:00:06]} Bf8 {[%emt 0:03:12]} 26. g4 {[%emt 0:04:41]} Bxc2 {[%emt 0:00:42]} (26... Bd3 {is more complex.} 27. Bf1 Bb5 28. Ra1 Ne8) 27. Rxc2 {[%emt 0:00:04]} Bxb4 {[%emt 0:00:10]} 28. Bxb4 {[%emt 0:00:05]} Rxb4 {[%emt 0:00:07]} 29. Rxc6 $11 {[%emt 0:00:05] KRB-KRN} Rb1+ {[%emt 0:00:14]} 30. Bf1 {[%emt 0:01:18]} h4 {[%emt 0:00:25]} 31. Kf2 {[%emt 0:03:31]} Rb2+ {[%emt 0:00:31]} 32. Kg1 $1 {[%emt 0:02:01]} Rb1 {[%emt 0:01:26] Weighted Error Value: White=0.03 (flawless) /Black=0.03 (flawless)} 1/2-1/2

[Event "1st Serbian League 2022"]
[Site "Vrnjacka Banja"]
[Date "2022.09.24"]
[Round "5.16"]
[White "Djukic, Nikola"]
[Black "Solak, Dragan"]
[Result "1/2-1/2"]
[ECO "B43"]
[WhiteElo "2536"]
[BlackElo "2592"]
[Annotator "TA"]
[PlyCount "145"]
[EventDate "2022.09.20"]
[EventType "team-tourn"]
[EventCountry "SRB"]
[SourceTitle "playchess.com"]
[Source "ChessBase"]
[SourceQuality "1"]
[TimeControl "40/5400+30:1800+30"]

{[%evp 15,145,29,34,22,37,9,6,6,0,0,34,2,6,0,0,-26,-37,-35,-32,-27,-24,-34,-33,-34,-33,-40,-17,-17,-30,-62,-59,-53,-56,-65,-36,-47,-29,-36,-36,-35,-22,-30,0,-49,-45,-47,-44,-56,5477,-30,730,-29996,-52,-44,-41,-43,-36,-47,-47,-59,-59,-54,-49,-59,-27,-68,-52,-61,-58,-97,-27,-27,-27,-57,0,-27,-11,-54,-17,-34,-17,-17,-11,-54,-27,-59,-11,-35,-26,-47,-34,-41,-36,-62,-62,-65,-47,-47,-14,-41,0,0,0,0,0,0,0,-7,0,0,0,0,0,0,0,0,0,0,0,0,0,0,0,0,0,0,0,0,0,0,0,0]} 1. e4 {[%emt 0:00:03]} c5 {[%emt 0:01:20]} 2. Nf3 {[%emt 0:00:08]} e6 {[%emt 0:00:05]} 3. d4 {[%emt 0:00:06]} cxd4 {[%emt 0:00:04]} 4. Nxd4 {[%emt 0:00:04]} a6 {[%emt 0:00:04]} 5. Nc3 {[%emt 0:00:44]} b5 {[%emt 0:00:10]} 6. Bd3 {[%emt 0:00:14]} Bb7 {[%emt 0:00:05]} 7. O-O {[%emt 0:00:13]} Nc6 {[%emt 0:00:04]} 8. Nxc6 {[%emt 0:01:06]} Bxc6 {[%emt 0:00:07]} 9. Qe2 {[%emt 0:04:18] B43: Sicilian: Kan Variation: 5 Nc3.} Ne7 {[%emt 0:00:43]} 10. Bd2 {[%emt 0:05:30]} b4 {[%emt 0:00:22]} 11. Nd1 {[%emt 0:01:32][%cal Bc3d1,Bd1e3,Be3c4][%mdl 32] [#]} Ng6 $146 {[%emt 0:00:08]} ({Predecessor:} 11... a5 12. Ne3 Ng6 13. f4 Bc5 14. Kh1 Qc7 15. Nc4 O-O 16. f5 exf5 17. Rxf5 d6 {1-0 (40) Vuckovic,B (2640)-Urosevic,A (2240) Sarajevo 2010}) 12. f4 {[%emt 0:06:55]} Bd6 {[%emt 0:01:32]} 13. e5 {[%emt 0:04:25]} Be7 {[%emt 0:00:47]} 14. Ne3 {[%emt 0:06:52]} Bc5 {[%emt 0:02:14]} 15. h3 {[%emt 0:27:51]} d6 {[%emt 0:12:39]} 16. exd6 {[%emt 0:01:30]} Qxd6 {[%emt 0:03:16]} 17. g3 {[%emt 0:00:28]} O-O {[%emt 0:33:03] [#] And now ...e5 would win.} ({Resist} 17... Qd5 18. Kh2 Qd7 19. Rad1 $14) 18. Kh2 {[%emt 0:00:19]} a5 {[%emt 0:13:40]} 19. Nc4 {[%emt 0:05:38]} Qc7 {[%emt 0:00:38]} ({Don't do} 19... Qd5 20. Rad1 $11) 20. Be3 {[%emt 0:06:35]} Bb5 {[%emt 0:06:25]} 21. Bxc5 {[%emt 0:01:01]} Qxc5 {[%emt 0:00:09]} 22. Ne5 {[%emt 0:04:41]} Nxe5 {[%emt 0:04:10]} 23. Bxb5 {[%emt 0:00:18]} Rfb8 {[%emt 0:03:58]} 24. Ba6 {[%emt 0:04:23]} Rb6 {[%emt 0:07:53]} 25. fxe5 {[%emt 0:00:54]} Rbxa6 {[%emt 0:00:06]} 26. c4 {[%emt 0:04:43]} bxc3 {[%emt 0:02:22][%cal Oa8b8]} 27. Rac1 {[%emt 0:00:21]} Rb6 {[%emt 0:00:59] Hoping for ...Rab8.} 28. Rxc3 {[%emt 0:00:21]} Qb5 {[%emt 0:02:37]} 29. Qf2 {[%emt 0:03:25]} (29. Qf3 $11 Qe8 30. b3) 29... Rb7 $15 {[%emt 0:00:35]} (29... Qxb2 $2 30. Rc2 Qxc2 31. Qxc2 $18) 30. Rb3 {[%emt 0:02:15]} Qd7 {[%emt 0:02:11]} 31. Rd1 {[%emt 0:02:58]} Qd6 $2 {[%emt 0:03:34][%mdl 8192]} 32. Rd2 $2 (32. exd6 $18 Rd7 33. Rc3) 32... Qxd2 $4 {[%emt 0:00:00][%mdl 8192]} 33. Rb5 $4 {[%emt 0:07:09][%mdl 8192]} (33. Qxd2 $18 Rxb3 34. axb3) 33... Qd1 $2 (33... Qxf2+ {mates} 34. Kh1 Rxb5 35. g4 Rxe5 36. b3 Re1#) 34. Rxb7 {[%emt 0:00:00][%mdl 4096] Endgame KQR-KQR} Rf8 {[%emt 0:00:00]} 35. Rc7 {[%emt 0:00:00]} h6 {[%emt 0:00:22]} 36. b3 {[%emt 0:00:00]} a4 {[%emt 0:01:11]} 37. bxa4 {[%emt 0:01:06]} Qxa4 {[%emt 0:00:02]} 38. Rc2 {[%emt 0:00:44]} Qe4 {[%emt 0:00:55]} 39. Re2 {[%emt 0:00:15]} Qa8 {[%emt 0:00:36]} 40. Qf4 {[%emt 0:00:25]} Rc8 {[%emt 0:00:21]} 41. Rf2 {[%emt 0:30:24]} Qa7 {[%emt 0:30:26][%cal Oc8c1]} 42. h4 {[%emt 0:00:57] [#]} Rb8 {[%emt 0:00:39]} (42... Rc1 $1 $17) 43. Rd2 {[%emt 0:00:00]} Qa3 {[%emt 0:00:00]} (43... Rb1 $2 44. Rd8+ Kh7 45. Qe4+ g6 46. Qxb1 $18) 44. Kh3 {[%emt 0:00:00]} Qa7 {[%emt 0:00:00]} 45. Kh2 {[%emt 0:00:00]} Qc7 {[%emt 0:00:00]} (45... Rb1 $2 46. Rd8+ Kh7 47. Qe4+ g6 48. Qxb1 $18) 46. Qe4 {[%emt 0:00:00]} Qc1 {[%emt 0:00:00]} (46... Rb5 $5 {[%cal Rb5e5]}) 47. Rf2 {[%emt 0:00:00]} Qc5 {[%emt 0:00:00]} 48. Rc2 {[%emt 0:00:00]} Qa5 {[%emt 0:00:00]} 49. Kg2 {[%emt 0:00:00]} Rd8 {[%emt 0:00:00]} 50. Kh3 {[%emt 0:00:00]} Qa6 {[%emt 0:00:00]} (50... h5 $15 {feels stronger.}) 51. Qf3 {[%emt 0:00:00]} Qa7 {[%emt 0:00:00]} 52. Kh2 {[%emt 0:00:00]} Qd4 {[%emt 0:00:00]} 53. Rf2 {[%emt 0:00:00]} Rd7 {[%emt 0:00:00]} 54. Qa8+ {[%emt 0:00:00]} Kh7 {[%emt 0:00:00]} 55. Re2 {[%emt 0:00:00]} Rd5 {[%emt 0:00:00] ...Qd3 is the strong threat.} 56. Qb7 {[%emt 0:00:28]} Qg4 {[%emt 0:00:00]} 57. Qb1+ {[%emt 0:00:56]} Qg6 {[%emt 0:00:00]} (57... g6 $5 {[%cal Rg4e2]} 58. Rf2 Rd7 $11) 58. Qxg6+ {[%emt 0:01:59] The position is equal.} Kxg6 $11 {[%emt 0:00:00] KR-KR} 59. a4 {[%emt 0:00:08]} h5 {[%emt 0:00:00]} 60. Kg2 {[%emt 0:00:59]} Rd7 {[%emt 0:00:00]} 61. Rf2 {[%emt 0:01:09]} Rc7 {[%emt 0:01:16]} 62. Rf4 {[%emt 0:01:02]} Rc5 {[%emt 0:01:06]} 63. Re4 {[%emt 0:00:10]} Rc3 {[%emt 0:00:11]} 64. g4 {[%emt 0:00:27]} Ra3 {[%emt 0:02:18]} 65. Rf4 {[%emt 0:00:46]} hxg4 {[%emt 0:00:51]} 66. Rxg4+ {[%emt 0:00:05]} Kh7 {[%emt 0:01:32]} 67. Rf4 {[%emt 0:00:06]} f5 {[%emt 0:00:44] aiming for ...Re3.} 68. exf6 {[%emt 0:00:06]} gxf6 {[%emt 0:00:03]} 69. Rxf6 {[%emt 0:00:06]} Rxa4 {[%emt 0:00:02]} 70. Rxe6 {[%emt 0:00:06]} Rxh4 {[%emt 0:00:03]} 71. Re3 {[%emt 0:00:05]} Rg4+ {[%emt 0:00:03]} 72. Rg3 {[%emt 0:00:04]} Rxg3+ {[%emt 0:00:02]} 73. Kxg3 {[%emt 0:00:03] Weighted Error Value: White=0.32/Black=0.26 (precise)} 1/2-1/2

[Event "1st Serbian League 2022"]
[Site "Vrnjacka Banja"]
[Date "2022.09.24"]
[Round "5.17"]
[White "Kovacevic, Aleksandar"]
[Black "Strikovic, Aleksa"]
[Result "1/2-1/2"]
[ECO "C70"]
[WhiteElo "2471"]
[BlackElo "2491"]
[Annotator "TA"]
[PlyCount "69"]
[EventDate "2022.09.20"]
[EventType "team-tourn"]
[EventCountry "SRB"]
[SourceTitle "playchess.com"]
[Source "ChessBase"]
[SourceQuality "1"]
[TimeControl "40/5400+30:1800+30"]

{[%evp 15,69,50,59,51,56,23,23,32,39,18,33,-20,-19,-17,-11,-10,-14,-13,-15,-16,81,82,82,93,87,95,100,99,122,115,132,114,115,122,115,111,103,122,115,93,92,81,61,27,27,27,20,0,7,0,0,0,13,0,0,0]} 1. e4 {[%emt 0:00:15]} e5 {[%emt 0:00:05]} 2. Nf3 {[%emt 0:00:09]} Nc6 {[%emt 0:00:06]} 3. Bb5 {[%emt 0:00:21][%cal Bf1b5,Bb5a4,Ba4b3][%mdl 32]} a6 {[%emt 0:00:06]} 4. Ba4 {[%emt 0:00:15]} b5 {[%emt 0:00:06]} 5. Bb3 {[%emt 0:00:06]} Na5 {[%emt 0:00:04]} 6. O-O {[%emt 0:02:32]} d6 {[%emt 0:00:11]} 7. d4 {[%emt 0:00:57]} exd4 {[%emt 0:00:15] 7...exd4 scores better than 7...Nxb3.} 8. Nxd4 {[%emt 0:05:25][%cal Bf3d4,Bd4f5,Bf5e3,Be3c4][%mdl 32]} Bb7 {[%emt 0:00:11]} 9. a4 {[%emt 0:13:27] C70: Ruy Lopez: 3...a6 4 Ba4, Norwegian and Delayed Schliemann.} c5 {[%emt 0:27:28]} 10. Nf5 {[%emt 0:00:44]} (10. Qf3 $5 {[%cal Rf3f7]} Nf6 11. Nf5 $14) 10... Nxb3 {[%emt 0:00:24]} 11. cxb3 {[%emt 0:00:07] Strongly threatening Bf4. White has an edge.} g6 {[%emt 0:00:04]} 12. Ne3 {[%emt 0:01:13]} Nf6 {[%emt 0:06:09]} (12... Bxe4 $2 13. Re1 f5 14. Nd5 $18) 13. Nc3 {[%emt 0:05:47] [#]} ({Better is} 13. axb5 $14 axb5 14. Rxa8 Bxa8 15. f3) 13... b4 $146 {[%emt 0:15:50]} (13... Nxe4 14. Nxe4 Bxe4 15. Nd5 $18) ({Predecessor:} 13... Be7 14. Ned5 b4 15. Nxf6+ Bxf6 16. Nd5 Be5 17. Bf4 Bxb2 18. Ra2 Bd4 19. Bh6 Bxd5 20. exd5 {0-1 (52) Grigoriants,S (2561)-Vallejo Pons,F (2707) Riadh 2017}) 14. Ncd5 {[%emt 0:00:22]} Bg7 {[%emt 0:00:07]} ({Don't take} 14... Nxe4 15. Re1 Bg7 16. Nc2 $16 (16. f3 Bd4 $16)) 15. Nc4 {[%emt 0:08:53] Threatens to win with Nxf6+.} Nxd5 {[%emt 0:12:10]} (15... Nxe4 16. Re1 f5 17. f3 $14) 16. exd5 {[%emt 0:00:07] Black must now prevent Re1+.} O-O {[%emt 0:00:05]} 17. Bf4 {[%emt 0:04:18]} Be5 {[%emt 0:03:07]} (17... Bd4 $11) 18. Bxe5 $16 {[%emt 0:11:00]} ({Don't play} 18. Nxe5 $6 dxe5 19. Bxe5 Re8 $11) 18... dxe5 {[%emt 0:00:05]} 19. d6 {[%emt 0:00:44]} Qg5 {[%emt 0:00:06][%csl Gb7][%cal Rg5g2]} 20. f3 {[%emt 0:00:15]} Rad8 {[%emt 0:01:41]} 21. Qc1 {[%emt 0:03:12]} ({Much worse is} 21. d7 $6 Qe7 $11) 21... Qf4 {[%emt 0:04:12]} 22. Rd1 {[%emt 0:08:40] Prevents Bd5.} Rfe8 {[%emt 0:01:01]} 23. Qxf4 $1 {[%emt 0:10:04]} exf4 {[%emt 0:00:02] [#]} 24. Rac1 $1 {[%emt 0:01:59]} Ba8 {[%emt 0:21:21] [#]} 25. Nb6 $1 {[%emt 0:15:09] Hoping for d7.} Re5 {[%emt 0:00:22]} 26. d7 {[%emt 0:03:27]} Bb7 {[%emt 0:00:27]} 27. Rd6 {[%emt 0:00:21]} Kf8 {[%emt 0:00:23]} 28. Rcd1 {[%emt 0:01:44] White is more active.} Ke7 {[%emt 0:00:49]} 29. Nc4 {[%emt 0:01:55]} Re6 {[%emt 0:00:57] And now ...Rxd6 would win.} 30. R6d2 {[%emt 0:00:38]} g5 {[%emt 0:01:49]} 31. Kf2 {[%emt 0:00:42] The position is equal.} Bc6 {[%emt 0:00:26][%cal Rd8d7]} 32. Na5 {[%emt 0:00:08]} Ba8 {[%emt 0:00:09]} (32... Bxd7 $2 33. Nb7 Ra8 34. Rxd7+ $18) 33. Nc4 {[%emt 0:01:03][%cal Oh2h4]} Bc6 {[%emt 0:00:07][%cal Rd8d7]} 34. Na5 {[%emt 0:00:41]} Ba8 {[%emt 0:00:02]} (34... Bxd7 $2 35. Nb7 Re8 36. Rxd7+ $18) 35. Nc4 {[%emt 0:00:37] Weighted Error Value: White=0.10 (very precise) /Black=0.08 (flawless)} 1/2-1/2

[Event "1st Serbian League 2022"]
[Site "Vrnjacka Banja"]
[Date "2022.09.24"]
[Round "5.18"]
[White "Perunovic, Miodrag"]
[Black "Omorjan, Dejan"]
[Result "1-0"]
[ECO "B12"]
[WhiteElo "2413"]
[BlackElo "2265"]
[Annotator "TA"]
[PlyCount "67"]
[EventDate "2022.09.20"]
[EventType "team-tourn"]
[EventCountry "SRB"]
[SourceTitle "playchess.com"]
[Source "ChessBase"]
[SourceQuality "1"]
[TimeControl "40/5400+30:1800+30"]

{[%evp 9,67,15,0,7,22,-40,-39,-24,-35,-24,-34,-49,0,-27,-15,-41,-45,-51,-47,-94,-110,-104,-88,-91,-93,-85,0,0,0,-87,-89,-167,-109,-161,-163,-168,-168,-158,-114,-92,-95,-160,-160,-227,-210,-233,-224,-208,463,416,783,719,1077,1025,1220,727,705,646,597,547]} 1. e4 {[%emt 0:04:23]} c6 {[%emt 0:00:06]} 2. d4 {[%emt 0:01:33]} d5 {[%emt 0:00:07]} 3. e5 {[%emt 0:00:05]} Bf5 {[%emt 0:00:07]} 4. h4 {[%emt 0:00:04]} h5 {[%emt 0:00:06]} 5. Bd3 {[%emt 0:00:02]} Bxd3 {[%emt 0:00:10]} 6. Qxd3 {[%emt 0:00:03][%cal Oe5e6] White wants to play e6! B12: Caro-Kann: Advance Variation.} Qa5+ {[%emt 0:00:10]} 7. b4 {[%emt 0:00:01]} (7. c3 $11) 7... Qxb4+ $15 {[%emt 0:00:10]} 8. Nd2 {[%emt 0:00:01] Strongly threatening Rb1. Black is slightly better.} e6 {[%emt 0:00:16]} 9. Rb1 {[%emt 0:00:02]} Qe7 {[%emt 0:00:08]} 10. Ne2 {[%emt 0:00:01] [#]} Nh6 $146 {[%emt 0:05:14]} ({Predecessor:} 10... Qc7 11. O-O Nd7 12. c4 dxc4 13. Nxc4 Nb6 14. Nc3 Nh6 15. Bg5 Nxc4 16. Qxc4 Qd7 {½-½ (33) Van Foreest,J (2714)-Carlsen,M (2864) Oslo 2022}) 11. Nf3 {[%emt 0:04:43]} b5 {[%emt 0:07:21]} 12. O-O {[%emt 0:02:01][%cal Oa2a4]} Nf5 {[%emt 0:06:57]} 13. Bg5 {[%emt 0:06:23]} Qa3 {[%emt 0:04:42]} 14. Rb3 {[%emt 0:12:37]} (14. c3 $15) 14... Qxa2 $17 {[%emt 0:11:02]} 15. Ng3 {[%emt 0:07:00]} g6 {[%emt 0:04:24]} 16. Bf6 {[%emt 0:03:29]} Rh6 {[%emt 0:04:33]} 17. Bg5 {[%emt 0:15:30] Black must now prevent Nxf5.} Rh8 {[%emt 0:06:06]} 18. Bf6 $1 {[%emt 0:16:56]} Rh6 $1 {[%emt 0:05:12]} 19. Bg5 $1 {[%emt 0:06:51]} Rh7 {[%emt 0:00:14]} 20. Rfb1 {[%emt 0:01:12]} (20. Qc3 $17) 20... Qa6 {[%emt 0:05:06]} ({Better is} 20... Qa5 $1 $19 21. Nxf5 gxf5) 21. Nd2 {[%emt 0:02:09]} (21. Nxf5 $17 gxf5 22. Qc3) 21... Nd7 $19 {[%emt 0:02:51]} 22. Nxf5 {[%emt 0:04:05]} gxf5 {[%emt 0:01:36]} 23. Nf1 {[%emt 0:00:01][%cal Bd2f1,Bf1g3,Bg3h5,Bh5f6][%mdl 32]} Qc8 {[%emt 0:14:15]} 24. Ng3 {[%emt 0:00:12][%cal Og3f5]} Bh6 {[%emt 0:06:34]} 25. Qd2 {[%emt 0:01:01]} ({White should play} 25. Bxh6 Rxh6 26. Qd2) 25... Bxg5 $1 $17 {[%emt 0:02:42]} 26. Qxg5 {[%emt 0:00:03] [#]} (26. hxg5 $17 a5 27. Ne2) 26... Qd8 $1 $19 {[%emt 0:01:35]} 27. Qg8+ {[%emt 0:03:25]} Nf8 {[%emt 0:00:01]} 28. Rc3 {[%emt 0:00:57]} Kd7 {[%emt 0:01:10][%mdl 8192] [#]} (28... Qxh4 $19 {and all is fine.} 29. Ne2 (29. Rxc6 $2 Qxd4 30. Qg5 Qg4 $19) 29... Qe4) 29. Nxh5 $1 $18 {[%emt 0:02:42] Nf6+ is the strong threat.} Qxh4 {[%emt 0:10:31]} (29... Kc7 $142) 30. Rh3 {[%emt 0:03:54] White is clearly winning.} Qxd4 {[%emt 0:01:28]} 31. Nf6+ {[%emt 0:00:15]} Ke7 {[%emt 0:00:26]} 32. Rxh7 {[%emt 0:00:51]} Nxh7 {[%emt 0:00:26]} 33. Qxa8 {[%emt 0:00:03][%csl Gf6][%cal Ra8e8]} Nxf6 {[%emt 0:00:09]} 34. exf6+ {[%emt 0:00:05] Weighted Error Value: White=0.22 (precise) /Black=0.41} 1-0

[Event "1st Serbian League 2022"]
[Site "Vrnjacka Banja"]
[Date "2022.09.24"]
[Round "5.19"]
[White "Budisavljevic, Luka"]
[Black "Yilmazyerli, Mert"]
[Result "1/2-1/2"]
[ECO "D27"]
[WhiteElo "2524"]
[BlackElo "2533"]
[Annotator "TA"]
[PlyCount "53"]
[EventDate "2022.09.20"]
[EventType "team-tourn"]
[EventCountry "SRB"]
[SourceTitle "playchess.com"]
[Source "ChessBase"]
[SourceQuality "1"]
[TimeControl "40/5400+30:1800+30"]

{[%evp 21,53,14,39,20,44,44,44,39,43,41,41,16,19,17,15,13,42,24,22,18,37,13,14,17,12,12,18,21,19,0,0,0,0,0]} 1. d4 {[%emt 1:31:00]} d5 {[%emt 0:01:30]} 2. c4 {[%emt 0:00:00]} dxc4 {[%emt 0:00:13]} 3. Nf3 {[%emt 0:00:00]} Nf6 {[%emt 0:00:05]} 4. e3 {[%emt 0:00:00]} e6 {[%emt 0:00:13]} 5. Bxc4 {[%emt 0:00:00]} c5 {[%emt 0:00:10]} 6. O-O {[%emt 0:00:00]} a6 {[%emt 0:00:11]} 7. b3 {[%emt 0:00:00]} Nc6 {[%emt 0:03:03]} 8. dxc5 {[%emt 0:00:00]} Qxd1 {[%emt 0:01:41]} 9. Rxd1 {[%emt 0:00:00]} Bxc5 {[%emt 0:00:05]} 10. Bb2 {[%emt 0:00:00]} b5 {[%emt 0:05:34]} 11. Be2 {[%emt 0:00:00]} Bb7 {[%emt 0:00:05]} 12. Nbd2 {[%emt 0:00:00][%cal Bb1d2,Bd2c4,Bc4d6][%mdl 32] D27: Queen's Gambit Accepted: Classical main line: 7 e4!? and 7 a4.} Be7 {[%emt 0:03:51]} 13. a4 {[%emt 0:00:00]} bxa4 {[%emt 0:01:10]} 14. Rxa4 {[%emt 0:00:00] White is slightly better.} O-O {[%emt 0:00:36]} 15. Rda1 {[%emt 0:00:00][%cal Re2a6]} a5 {[%emt 0:03:39] [#]} 16. Ne5 $146 {[%emt 0:00:00]} ({Predecessor:} 16. Nc4 Bb4 17. Nd4 Nd5 18. Bf3 Nxd4 19. Bxd4 Bc6 20. R4a2 Rfb8 21. h3 h6 22. Nxa5 Rxa5 23. Rxa5 Bxa5 24. Rxa5 Rxb3 {½-½ (32) Dzagnidze,N (2515)-Muzychuk,M (2552) Lausanne 2020}) 16... Bb4 {[%emt 0:10:54] [#] White must now prevent ...Nxe5.} 17. Ndc4 {[%emt 0:00:00][%cal Oc4a5]} Nxe5 {[%emt 0:03:00]} 18. Bxe5 {[%emt 0:00:00][%cal Rc4a5]} Nd7 {[%emt 0:04:52]} 19. Bd6 {[%emt 0:00:00]} Bxd6 {[%emt 0:03:06]} 20. Nxd6 {[%emt 0:00:00]} Bd5 {[%emt 0:00:04]} 21. Bc4 {[%emt 0:00:00]} Bxc4 {[%emt 0:04:34] The position is equal.} 22. Nxc4 {[%emt 0:00:00]} Rab8 $1 {[%emt 0:03:59] Prevents b4.} 23. Nxa5 {[%emt 0:00:00]} Nc5 {[%emt 0:00:52][%csl LRa4,LRb3]} 24. R4a3 {[%emt 0:00:00]} Rb5 {[%emt 0:00:12]} 25. h3 {[%emt 0:00:00]} Rxa5 {[%emt 0:01:24][%mdl 64] [#] Remove Defender, Decoy} 26. Rxa5 {[%emt 0:00:00]} Nxb3 {[%emt 0:00:03]} 27. R1a3 {[%emt 0:00:00] Weighted Error Value: White=0.09 (flawless) /Black=0.04 (flawless)} 1/2-1/2